Cogmind - Beta 13 @@@ ROGUE MODE // 2024.04.02 @ 00:18:38 Player: MasterLemons Result: Destroyed by D-53 Grenadier with Mini Grenade Launcher Performance ------------- Evolutions (0) 0 Regions Visited (2) 400 Robots Destroyed (7) 35 Value Destroyed (100) 100 Prototype IDs (0) 0 Alien Tech Used (0) 0 Bonus (0) 0 TOTAL SCORE: 535 Bonus ------- None Cogmind --------- Core Integrity 0/250 Matter 300/300 Energy 122/125 System Corruption 0% Temperature Cool (2) Movement Walking (120) Location -10/Mines Parts ------- > --- POWER (1) -------- Light Ion Engine > --- PROPULSION (2) --- Flexi-carbon Leg > --- UTILITY (2) ------ Small Storage Unit > --- WEAPON (2) ------- (None) > --- INVENTORY (8) ---- Light Ion Engine Peak State ------------ > --- POWER ------------ Ion Engine > --- PROPULSION ------- Flexi-carbon Leg Flexi-carbon Leg > --- UTILITY ---------- Small Storage Unit Tractor Beam > --- WEAPON ----------- Beam Cannon Assault Rifle > --- INVENTORY -------- Ion Engine Light Ion Engine Light Ion Engine [Rating: 15] Favorites ----------- Power Ion Engine Engine Ion Engine Propulsion Aluminum Leg Leg Aluminum Leg Utility Small Storage Unit Device Tractor Beam Storage Small Storage Unit Weapon Assault Rifle Energy Gun Medium Laser Energy Cannon Beam Cannon Ballistic Gun Assault Rifle Launcher Grenade Launcher Build | -11 -10 -10 ------- Run | Yrd Mat Min Slots Evolved . | . . . Power . | . . . Propulsion . | . . . Utility . | . . . Weapon . | . . . Parts Attached 14 | 6 2 6 Power 3 | 1 . 2 Engine 3 | 1 . 2 Core . | . . . Reactor . | . . . Propulsion 4 | 2 . 2 Treads . | . . . Leg 4 | 2 . 2 Wheel . | . . . Hover . | . . . Flight . | . . . Utility 3 | 1 1 1 Device 2 | . 1 1 Storage 1 | 1 . . Processor . | . . . Hackware . | . . . Protection . | . . . Artifact . | . . . Weapon 4 | 2 1 1 Energy Gun 1 | 1 . . Energy Cannon 1 | . . 1 Ballistic Gun 1 | 1 . . Ballistic Cannon . | . . . Launcher 1 | . 1 . Special Weapon . | . . . Impact Weapon . | . . . Slashing Weapon . | . . . Piercing Weapon . | . . . Special Melee Weapon . | . . . Unidentified Prototypes . | . . . Parts Lost 7 | . . 7 Power 2 | . . 2 Propulsion 1 | . . 1 Utility 1 | . . 1 Weapon 3 | . . 3 Highest Loss Streak 6 | . . 6 To Critical Strikes . | . . . Average Slot Usage (%) 87 | . 97 83 Engine 13 | . 14 13 Leg 27 | . 28 27 Device 13 | . 11 14 Storage 14 | . 14 14 Ballistic Gun 13 | . 14 12 Launcher 3 | . 12 . Naked Turns . | . . . Heaviest Build 16 | 14 16 16 Greatest Support 40 | 20 20 40 Greatest Overweight (x) . | . . . Average Overweight (x) . | . . . Largest Inventory Capacity 8 | 8 8 8 Average Capacity 7 | 5 8 8 Most Carried 4 | 4 2 4 Average Carried 1 | 1 1 1 Final Capacity 8 | 8 8 8 Final Carried 1 | 1 1 1 Class Distribution -------------------- 100% | Mutant Dominant Class ---------------- Mutant | -10/Materials Mutant | -10/Mines Resources | -11 -10 -10 ----------- Run | Yrd Mat Min Matter Collected 448 | 236 . 212 Remotely 212 | . . 212 Salvage Created 114 | . 58 56 Parts 11 | . 7 4 Haulers Intercepted . | . . . Recyclers Shooed . | . . . Parts Field Recycled . | . . . Retrieved Matter . | . . . Parts Self-Destructed . | . . . Prevented . | . . . Kills | -11 -10 -10 ------- Run | Yrd Mat Min Combat Hostiles Destroyed 15 | . 3 12 Guns 3 | . 1 2 AOE 12 | . 2 10 Classes Destroyed 4 | . 3 1 Watcher 1 | . 1 . Swarmer 5 | . 2 3 Grunt 1 | . 1 . Assembled 9 | . . 9 Best Kill Streak 9 | . 3 9 Combat Bots Only 9 | . 3 9 Max Kills in Single Turn 3 | . 3 3 Gunslinging . | . . . Exploded 3 | . 2 3 Melee . | . . . Uniques/NPCs Destroyed . | . . . Combat | -11 -10 -10 -------- Run | Yrd Mat Min Hostile Shots Fired 46 | . 15 31 Missed 8 | . 5 3 Damage Taken 997 | . 88 909 Core 276 | . . 276 Absorbed by Shields . | . . . Core Remaining (%) 100 | 100 . . Volleys Fired 11 | . 3 8 Largest 2 | . 2 2 Hottest 50 | . 50 50 Shots Fired 20 | . 6 14 Gun 11 | . 3 8 Cannon . | . . . Launcher 9 | . 3 6 Special . | . . . Kinetic 11 | . 3 8 Thermal . | . . . Explosive 9 | . 3 6 Electromagnetic . | . . . Robot Hit Streak 4 | . . 4 Robot Miss Streak 5 | . 2 5 Penetration Max . | . . . Secondary Targets . | . . . Shots Hit Robots 7 | . . 7 Core Hits 29 | . 8 21 Critical Kills . | . . . Critical Parts Destroyed . | . . . Critical Strikes . | . . . Melee Attacks . | . . . Impact . | . . . Slashing . | . . . Piercing . | . . . Sneak Attacks . | . . . Combat Hostiles . | . . . Follow-up Attacks . | . . . Damage Inflicted 760 | . 229 531 Guns 77 | . 16 61 Cannons . | . . . Explosions 683 | . 213 470 Melee . | . . . Ramming . | . . . Kinetic 77 | . 16 61 Thermal . | . . . Explosive 683 | . 213 470 Electromagnetic . | . . . Impact . | . . . Slashing . | . . . Piercing . | . . . Highest Corruption . | . . . Average Corruption . | . . . Corruption Purged . | . . . Corruption Blocked . | . . . Overload Shots . | . . . Overflow Damage 37 | . 30 7 Projectiles . | . . . Explosions 37 | . 30 7 Melee . | . . . Knockbacks . | . . . Impact . | . . . Kinetic . | . . . Secondary . | . . . Self-Inflicted Damage 28 | . . 28 Shots 1 | . . 1 Rammed . | . . . Targets Rammed . | . . . Kicked . | . . . Crushed . | . . . Highest Temperature 16 | . . 16 Average Temperature 10 | . . 10 Received Heat Transfer 38 | . 18 20 Siege Activations . | . . . Robots Corrupted . | . . . Combat Hostiles . | . . . Parts Fried . | . . . Impact Corruptions . | . . . Robots Melted . | . . . Combat Hostiles . | . . . Parts Melted . | . . . Heat Transferred . | . . . Parts Sabotaged . | . . . Parts Stolen . | . . . Parts Stripped . | . . . Power Chain Reactions . | . . . Alert | -11 -10 -10 ------- Run | Yrd Mat Min Peak Influence 147 | . 107 147 Initial 41 | . . 41 Average 96 | . 25 126 Maximum Alert Level . | . . . Low Security (%) 100 | 100 100 100 Level 1 . | . . . Level 2 . | . . . Level 3 . | . . . Level 4 . | . . . Level 5 . | . . . High Security . | . . . Max Security . | . . . Squads Dispatched . | . . . Investigation . | . . . Extermination . | . . . Reinforcement . | . . . Assault . | . . . Garrison . | . . . Intercept . | . . . Searches Triggered . | . . . Construction Impeded . | . . . Haulers Reinforced . | . . . Active Scanning Responses . | . . . Cargo Convoy Interrupts . | . . . Stealth | -11 -10 -10 --------- Run | Yrd Mat Min Distress Signals . | . . . Communications Jammed . | . . . Distress Signals . | . . . Times Spotted 20 | . 6 14 Peak Tracking Total 10 | . 5 10 Tactical Retreats 1 | . . 1 Traps | -11 -10 -10 ------- Run | Yrd Mat Min Traps Triggered . | . . . Indirectly . | . . . Trap Hack Attempts . | . . . Triggered . | . . . Disarmed . | . . . Reprogrammed . | . . . Reused . | . . . Traps Extracted . | . . . Installed . | . . . Triggered . | . . . Machines | -11 -10 -10 ---------- Run | Yrd Mat Min Machines Disabled . | . . . Max in Single Turn . | . . . Machines Repaired . | . . . Machines Dismantled . | . . . Machines Sabotaged . | . . . Overloaded Fab Kills . | . . . Hacking | -11 -10 -10 --------- Run | Yrd Mat Min Machines Accessed 2 | . 2 . Terminals 2 | . 2 . Fabricators . | . . . Repair Stations . | . . . Recycling Units . | . . . Scanalyzers . | . . . Garrison Access . | . . . Total Hacks 5 | . 5 . Successful 4 | . 4 . Failed 1 | . 1 . Catastrophic . | . . . Database Lockouts . | . . . Manual . | . . . Terminals 5 | . 5 . Fabricators . | . . . Repair Stations . | . . . Recycling Units . | . . . Scanalyzers . | . . . Garrison Access . | . . . Terminal Hacks 4 | . 4 . Robot Analysis 1 | . 1 . Locate Traps 1 | . 1 . Registered Prototypes 1 | . 1 . Zone Layout 1 | . 1 . Fabricator Hacks . | . . . Repair Station Hacks . | . . . Recycling Unit Hacks . | . . . Scanalyzer . | . . . Garrison Access Hacks . | . . . Unauthorized Hacks . | . . . Terminals . | . . . Fabricators . | . . . Repair Stations . | . . . Recycling Units . | . . . Scanalyzers . | . . . Garrison Access . | . . . Data Cores Recovered . | . . . Used . | . . . Hacking Detections 2 | . 2 . Full Trace Events . | . . . Feedback Events . | . . . Feedback Blocked . | . . . Robot Schematics Acquired . | . . . Robots Built . | . . . Authchips . | . . . Time . | . . . Total Robot Build Rating . | . . . Part Schematics Acquired . | . . . Parts Built . | . . . Authchips . | . . . Time . | . . . Total Part Build Rating . | . . . Parts Repaired . | . . . Time . | . . . Parts Recycled . | . . . Recycled Matter . | . . . Retrieved Matter . | . . . Retrieved Components . | . . . Parts Scanalyzed . | . . . Part Schematics Acquired . | . . . Parts Damaged . | . . . Bothacking | -11 -10 -10 ------------ Run | Yrd Mat Min Used RIF Installer . | . . . Robots Hacked . | . . . Non-combat . | . . . Combat . | . . . Robot Hacks Applied . | . . . Relay Couplers Released . | . . . Fabnet Peak Effective % . | . . . Robots Rewired . | . . . Allies Hacked . | . . . Hacks Repelled . | . . . Allies | -11 -10 -10 -------- Run | Yrd Mat Min Total Allies . | . . . Largest Group . | . . . Highest-Rated Group . | . . . Highest-Rated Ally . | . . . Total Orders . | . . . Ally Attacks . | . . . Total Damage . | . . . Kills . | . . . Allies Corrupted . | . . . Allies Melted . | . . . Intel | -11 -10 -10 ------- Run | Yrd Mat Min Robot Analysis Total 1 | . 1 . Derelict Logs Recovered . | . . . Drone Launches . | . . . Drone Recoveries . | . . . Exploration | -11 -10 -10 ------------- Run | Yrd Mat Min Turns Passed 600 | 45 124 431 Spaces Moved 452 | 31 92 329 Core 7 | 7 . . Treads . | . . . Legs 445 | 24 92 329 Wheels . | . . . Hover . | . . . Flight . | . . . Fastest Speed 50 | 50 120 120 Average Speed 118 | 104 120 120 Slowest Speed 120 | 120 120 120 Overloaded Moves . | . . . Propulsion Burnouts . | . . . Robots Hopped . | . . . Cave-ins Triggered . | . . . Exploration Rate (%) 27 | 2 28 53 Regions Visited 2 Branch Regions 1 Pre-discovered Areas . | . . . Known Exits Taken . | . . . Unknown Exits Taken 2 | 1 1 . Scrap Searched 1 | . . 1 Spaces Dug . | . . . Terrain Destroyed 64 | . 14 50 Melee . | . . . Projectile . | . . . AOE 64 | . 14 50 Terrain Rammed . | . . . Walls Destroyed . | . . . Machines Disabled . | . . . Actions | -11 -10 -10 --------- Run | Yrd Mat Min Total 494 | 43 99 352 Wait . | . . . Move 450 | 30 91 329 Hop . | . . . Pick Up 15 | 7 2 6 Fast Attach . | . . . Attach 11 | 6 1 4 Detach . | . . . Swap 3 | . 1 2 Drop 4 | . 1 3 Fire 11 | . 3 8 Melee . | . . . Ram . | . . . Kick . | . . . Crush . | . . . Escape Stasis . | . . . Rewire . | . . . Trap . | . . . Miscellaneous . | . . . Route ------- -11/Scrapyard -10/Materials -10/Mines History --------- Turn | Location | Event 22 | -11/Scrapyard | Discovered new exit (range 15) 46 | -11/Scrapyard | Entered Materials 159 | -10/Materials | Discovered new exit (range 7) 170 | -10/Materials | Entered Mines 171 | -10/Mines | Assembled infested the area 176 | -10/Mines | Assisted by a Guerilla fighting off Assembled 235 | -10/Mines | Destroyed 9 combat bots 310 | -10/Mines | Build established: Mutant 588 | -10/Mines | Core integrity fell below 50% 593 | -10/Mines | Core integrity fell below 20% 601 | -10/Mines | Destroyed by D-53 Grenadier with Mini Grenade Launcher Last Messages --------------- 00468_ Acquired 8 matter. 00468_ Acquired 29 matter. 00468_ Acquired 1 matter. 00471_ Acquired Flexi-carbon Leg. 00475_ Acquired 10 matter. 00477_ Dropped Aluminum Leg. 00494_ Acquired Lgt. Ion Engine. 00532_ K-01 Serf collects debris. 00545_ Acquired 10 matter. 00547_ Beam Cannon destroyed. 00547_ Ion Engine destroyed. 00554_ Acquired 10 matter. 00560_ Assault Rifle destroyed. 00568_ U-05 Engineer destroyed. 00577_ K-01 Serf collects debris. 00583_ Ion Engine destroyed. 00585_ K-01 Serf destroyed. 00587_ Flexi-carbon Leg destroyed. 00600_ Tractor Beam destroyed. 00601_ The unstable cave ceiling collapses. Map ----- +----------------------------------------------------+ | ????????????????????????????????? | | ????????????????????????????????? | | ????????????????????????????????? | | ????????????????????????????????? | | ????????????????????????????????? | | ?????????????????????????#####??? | | ????????????????????????## ###? | | ???????????????????????## ## | | ??????????????????????## # | | ??????????????????????# # | | ?????????????????????## # | | ???????????????####### # | | ??????????????# ## # # | | ??????#????### # | | ??????# #### ## | | ??????# # # ## | | ??????? # | | ?????#### # | | ????##$ dd # = | | ????# ## | | ????# #### | | ????# # ###### | | ????# # ####??#" | | ????# ######????## = | | ????# #??????????# % | | ????## @ #??????????# | | ?????# ##??????????# | | ?????### ##???????????## | | ???????# #????????????# | | ???????# #????????????## * ## | | ???????# #?????????????# = # | | ??????? #????????????####** # | | ???????###??????????### #=!# = # | | ????????????????????# !!# ### | | ????????????????##### %!###?# | | ????????????????#%%%* %= ! #??? | | ???????##########%## ##??? | | ??# !%=!=|%*!*% ### ##???? | | ?# ###########?########????? | | ????????????????????????????????? | | ????????????????????????????????? | | ????????????????????????????????? | | ????????????????????????????????? | | ????????????????????????????????? | | ????????????????????????????????? | | ????????????????????????????????? | | ????????????????????????????????? | | ????????????????????????????????? | | ????????????????????????????????? | | ????????????????????????????????? | +----------------------------------------------------+ Best States ------------- Heat Dissipation 25 Energy Generation 10 Energy Capacity 250 Matter Stores 300 Matter Capacity 300 Sight Range 16 Terrain Scan Density 10 Evasion (%) 55 Item Schematics ----------------- None Robot Schematics ------------------ None Fabricated ------------ Nothing Alien Tech Used ----------------- None Achievements -------------- None Challenges ------------ None Game ------ Seed ClaymoresCoolantScythe Manual? 0 Play Time 00:09:27 Cumulative 11.0 hours Start 2024.04.02 @ 00:12:15 End 2024.04.02 @ 00:18:38 Sessions 1 Manual Loads 0 Difficulty Rogue Special Mode None Game No. 28 Rogue 25 Adventurer 3 Explorer 0 Win Type - Total 0 Types 0/0/0/0/0/0/0/0/0 Lore% 18 Gallery% 20 Achievement% 23 Wizard Run 0 Options --------- Layout 1 ASCII 0 Keyboard 0 Movement Mouse Keybinds 0 Fullscreen 1 Font 32/SmallcapsGlow Map View 77x35 Zoom Use 0% Tactical HUD 1 Map Filters NONE Filters NONE Steam 1 RUN: c4b570b4-736b-4bd9-b2bc-605451cb140b